{"text_format":"1","workbook":"xlsx","n_sheets":3,"sheets":["ipad","Sheet2","Sheet3"],"not_rendered":{"charts":0,"images":0,"macros":1,"external_links":0,"defined_names":1,"comments":0,"pivot_tables":0},"unopened":[],"bounds":{"document_bytes":16777216,"sheet_cells":100000,"rows_first":2000,"rows_last":500,"rows_between":2000,"halvings":0,"cell_chars":16384,"cell_head_chars":4096},"cells_cut":0,"cells_raw":0,"read":"whole","date_system":"1900"}

{"sheet":"ipad","index":0,"n_rows":29,"n_cols":12,"rows_kept":29,"cut":false,"hidden":false,"merged":[[8,5,8,6],[0,0,0,9],[2,1,2,2],[3,1,3,2],[1,1,1,2],[4,1,4,2],[5,1,5,2],[1,3,5,10],[6,0,7,10]]}
["iPad Checkout Form"]
["Division:",null,null,"Fill out all of the blue fields. Send this excel file by email to the COA Directors' Assistant and copy your division director. A one week notice must be given for all reservations. Only send student's information if they have signed the \"iPad checkout responsibility form\". If you send a student's name who has not signed the form and damage occurs, your division will be liable for all costs. Send this form each time you wish to reserve the iPads.",null,null,null,null,null,null,null,"Like New"]
["Class Title/Event:",null,null,null,null,null,null,null,null,null,null,"Good"]
["Professor:",null,null,null,null,null,null,null,null,null,null,"Bad"]
["Date(s) Desired:",null,null,null,null,null,null,null,null,null,null,"Broken"]
["Time Desired:",null,null,null,null,null,null,null,null,null,null,"Scratched"]
[]
[]
[null,"Sooner ID #","First Name","Last Name","iPad ID",null,null,"Date/Time out","Date/Time in","Late?","Condition upon check-in"]
["Borrower 1",null,null,null,null,null,null,null,null,{"$f":"IF(DATEDIF(MIN(H10),MAX(I10),\"d\")-(MOD(H10,1)-MOD(I10,1)) >=1,\"Yes\",\"No\" )","v":"No"}]
["Borrower 2",null,null,null,null,null,null,null,null,{"$f":"IF(DATEDIF(MIN(H11),MAX(I11),\"d\")-(MOD(H11,1)-MOD(I11,1)) >=1,\"Yes\",\"No\")","v":"No"}]
["Borrower 3",null,null,null,null,null,null,null,null,"No"]
["Borrower 4",null,null,null,null,null,null,null,null,"No"]
["Borrower 5",null,null,null,null,null,null,null,null,"No"]
["Borrower 6",null,null,null,null,null,null,null,null,"No"]
["Borrower 7",null,null,null,null,null,null,null,null,"No"]
["Borrower 8",null,null,null,null,null,null,null,null,"No"]
["Borrower 9",null,null,null,null,null,null,null,null,"No"]
["Borrower 10",null,null,null,null,null,null,null,null,"No"]
["Borrower 11",null,null,null,null,null,null,null,null,"No"]
["Borrower 12",null,null,null,null,null,null,null,null,"No"]
["Borrower 13",null,null,null,null,null,null,null,null,"No"]
["Borrower 14",null,null,null,null,null,null,null,null,"No"]
["Borrower 15",null,null,null,null,null,null,null,null,"No"]
["Borrower 16",null,null,null,null,null,null,null,null,"No"]
["Borrower 17",null,null,null,null,null,null,null,null,"No"]
["Borrower 18",null,null,null,null,null,null,null,null,"No"]
["Borrower 19",null,null,null,null,null,null,null,null,"No"]
["Borrower 20",null,null,null,null,null,null,null,null,"No"]

{"sheet":"Sheet2","index":1,"n_rows":0,"n_cols":0,"rows_kept":0,"cut":false,"hidden":false,"merged":[]}

{"sheet":"Sheet3","index":2,"n_rows":0,"n_cols":0,"rows_kept":0,"cut":false,"hidden":false,"merged":[]}